[Event "The Kvibergspelen 2023"]
[Site "Kviberg Park Hotel & Conference, Krutvagen 2, Gothenburg, Sweden"]
[Date "2023.09.16"]
[Round "6.11"]
[White "Hansen, Sune Berg"]
[Black "Ollen, Martin"]
[Result "1/2-1/2"]
[TimeControl "15 minutes + 5 seconds per move from move one (Round 1 - 4) / 90 minutes + 30 seconds per move from move one (Round 5 - 8)"]
[WhiteTitle "GM"]
[WhiteFideId "1400266"]
[BlackFideId "1718983"]
[WhiteElo "2512"]
[BlackElo "2143"]

1. d4 {[%clk 01:30:57]} {[%emt 00:00:02]} Nf6 {[%clk 01:28:05]} {[%emt
00:02:54]} 2. Nf3 {[%clk 01:30:49]} {[%emt 00:00:38]} g6 {[%clk 01:28:30]}
{[%emt 00:00:07]} 3. g3 {[%clk 01:31:13]} {[%emt 00:00:05]} Bg7 {[%clk
01:28:55]} {[%emt 00:00:05]} 4. Bg2 {[%clk 01:31:38]} {[%emt 00:00:05]} O-O
{[%clk 01:29:19]} {[%emt 00:00:06]} 5. O-O {[%clk 01:32:03]} {[%emt 00:00:05]}
d5 {[%clk 01:29:40]} {[%emt 00:00:10]} 6. a4 {[%clk 01:32:26]} {[%emt
00:00:06]} c5 {[%clk 01:29:09]} {[%emt 00:01:02]} 7. dxc5 {[%clk 01:32:18]}
{[%emt 00:00:37]} Na6 {[%clk 01:28:58]} {[%emt 00:00:42]} 8. Nc3 {[%clk
01:30:31]} {[%emt 00:02:15]} Nxc5 {[%clk 01:28:58]} {[%emt 00:00:31]} 9. Be3
{[%clk 01:30:28]} {[%emt 00:00:33]} Nce4 {[%clk 01:24:59]} {[%emt 00:04:29]} 10.
Bd4 {[%clk 01:26:09]} {[%emt 00:04:49]} Bf5 {[%clk 01:17:33]} {[%emt 00:07:56]}
11. a5 {[%clk 01:15:43]} {[%emt 00:10:57]} Nxc3 {[%clk 01:12:28]} {[%emt
00:05:35]} 12. Bxc3 {[%clk 01:13:28]} {[%emt 00:02:45]} Rc8 {[%clk 01:02:40]}
{[%emt 00:10:17]} 13. Qd4 {[%clk 01:00:48]} {[%emt 00:13:10]} a6 {[%clk
00:33:03]} {[%emt 00:30:07]} 14. Qb4 {[%clk 00:58:16]} {[%emt 00:03:01]} Qd7
{[%clk 00:28:29]} {[%emt 00:05:04]} 15. Rac1 {[%clk 00:52:40]} {[%emt
00:06:07]} Rc7 {[%clk 00:23:54]} {[%emt 00:05:05]} 16. Ne5 {[%clk 00:46:38]}
{[%emt 00:06:32]} Qc8 {[%clk 00:23:32]} {[%emt 00:00:52]} 17. Nd3 {[%clk
00:43:15]} {[%emt 00:03:53]} Bh3 {[%clk 00:19:39]} {[%emt 00:04:22]} 18. Be5
{[%clk 00:34:00]} {[%emt 00:09:46]} Bxg2 {[%clk 00:16:46]} {[%emt 00:03:22]} 19.
Kxg2 {[%clk 00:33:24]} {[%emt 00:01:07]} Rc4 {[%clk 00:07:35]} {[%emt
00:09:41]} 20. Qxe7 {[%clk 00:29:29]} {[%emt 00:04:24]} Re8 {[%clk 00:06:12]}
{[%emt 00:01:55]} 21. Qa3 {[%clk 00:28:32]} {[%emt 00:01:26]} Rxc2 {[%clk
00:04:15]} {[%emt 00:02:27]} 22. Rxc2 {[%clk 00:15:27]} {[%emt 00:13:35]} Qxc2
{[%clk 00:04:39]} {[%emt 00:00:06]} 23. Rc1 {[%clk 00:14:19]} {[%emt 00:01:38]}
Qxe2 {[%clk 00:03:59]} {[%emt 00:01:10]} 24. Bxf6 {[%clk 00:13:06]} {[%emt
00:01:43]} Qe4+ {[%clk 00:02:54]} {[%emt 00:01:35]} 25. Kg1 {[%clk 00:13:29]}
{[%emt 00:00:06]} Bxf6 {[%clk 00:02:31]} {[%emt 00:00:54]} 26. Re1 {[%clk
00:13:51]} {[%emt 00:00:07]} Qxe1+ {[%clk 00:02:22]} {[%emt 00:00:39]} 27. Nxe1
{[%clk 00:14:16]} {[%emt 00:00:06]} Rxe1+ {[%clk 00:02:49]} {[%emt 00:00:03]}
28. Kg2 {[%clk 00:14:43]} {[%emt 00:00:03]} Re2 {[%clk 00:01:44]} {[%emt
00:01:35]} 29. Qf3 {[%clk 00:14:45]} {[%emt 00:00:27]} Re6 {[%clk 00:01:41]}
{[%emt 00:00:34]} 30. b3 {[%clk 00:12:50]} {[%emt 00:02:25]} Rd6 {[%clk
00:01:47]} {[%emt 00:00:24]} 31. Qf4 {[%clk 00:13:06]} {[%emt 00:00:13]} Be7
{[%clk 00:01:51]} {[%emt 00:00:27]} 32. Qe5 {[%clk 00:11:41]} {[%emt 00:01:54]}
Bf8 {[%clk 00:01:34]} {[%emt 00:00:48]} 33. Qd4 {[%clk 00:11:44]} {[%emt
00:00:27]} f6 {[%clk 00:00:33]} {[%emt 00:01:31]} 34. Kf1 {[%clk 00:11:38]}
{[%emt 00:00:36]} Kf7 {[%clk 00:00:58]} {[%emt 00:00:06]} 35. Qa7 {[%clk
00:10:50]} {[%emt 00:01:18]} Rd7 {[%clk 00:01:17]} {[%emt 00:00:11]} 36. Ke2
{[%clk 00:11:04]} {[%emt 00:00:15]} d4 {[%clk 00:00:48]} {[%emt 00:01:00]} 37.
Kd3 {[%clk 00:11:23]} {[%emt 00:00:11]} Be7 {[%clk 00:00:34]} {[%emt 00:00:43]}
38. Qb8 {[%clk 00:11:16]} {[%emt 00:00:36]} Bd8 {[%clk 00:00:44]} {[%emt
00:00:21]} 39. Qc8 {[%clk 00:11:24]} {[%emt 00:00:22]} Ke7 {[%clk 00:00:55]}
{[%emt 00:00:18]} 40. Qc5+ {[%clk 00:11:35]} {[%emt 00:00:19]} Kf7 {[%clk
00:00:35]} {[%emt 00:00:50]} 41. b4 {[%clk 00:10:49]} {[%emt 00:01:16]} Ke8
{[%clk 00:00:32]} {[%emt 00:00:34]} 42. Qc4 {[%clk 00:10:58]} {[%emt 00:00:20]}
Kf8 {[%clk 00:00:57]} {[%emt 00:00:06]} 43. Qe6 {[%clk 00:11:16]} {[%emt
00:00:12]} Rc7 {[%clk 00:00:52]} {[%emt 00:00:36]} 44. Qd6+ {[%clk 00:10:51]}
{[%emt 00:00:54]} Ke8 {[%clk 00:01:14]} {[%emt 00:00:08]} 45. Qd5 {[%clk
00:11:18]} {[%emt 00:00:03]} Rf7 {[%clk 00:00:54]} {[%emt 00:00:50]} 46. Qe6+
{[%clk 00:11:18]} {[%emt 00:00:30]} Kf8 {[%clk 00:01:16]} {[%emt 00:00:08]} 47.
Kxd4 {[%clk 00:11:29]} {[%emt 00:00:19]} f5 {[%clk 00:01:38]} {[%emt 00:00:09]}
48. Qd6+ {[%clk 00:11:17]} {[%emt 00:00:41]} Be7 {[%clk 00:00:37]} {[%emt
00:01:32]} 49. Qb8+ {[%clk 00:09:22]} {[%emt 00:02:24]} Kg7 {[%clk 00:01:02]}
{[%emt 00:00:04]} 50. Kc4 {[%clk 00:09:40]} {[%emt 00:00:13]} Bf6 {[%clk
00:01:25]} {[%emt 00:00:08]} 51. f4 {[%clk 00:09:19]} {[%emt 00:00:50]} Re7
{[%clk 00:01:01]} {[%emt 00:00:55]} 52. Qc8 {[%clk 00:08:29]} {[%emt 00:01:19]}
h5 {[%clk 00:01:03]} {[%emt 00:00:28]} 53. Kd5 {[%clk 00:06:49]} {[%emt
00:02:10]} Rf7 {[%clk 00:01:05]} {[%emt 00:00:27]} 54. h3 {[%clk 00:06:37]}
{[%emt 00:00:42]} Re7 {[%clk 00:01:20]} {[%emt 00:00:15]} 55. Kd6 {[%clk
00:06:08]} {[%emt 00:00:58]} Rf7 {[%clk 00:01:28]} {[%emt 00:00:23]} 56. Kd5
{[%clk 00:05:34]} {[%emt 00:01:04]} Re7 {[%clk 00:01:48]} {[%emt 00:00:10]} 57.
g4 {[%clk 00:04:59]} {[%emt 00:01:05]} hxg4 {[%clk 00:02:13]} {[%emt 00:00:05]}
58. hxg4 {[%clk 00:05:27]} {[%emt 00:00:02]} fxg4 {[%clk 00:02:35]} {[%emt
00:00:08]} 59. Qxg4 {[%clk 00:05:51]} {[%emt 00:00:05]} Kf7 {[%clk 00:02:09]}
{[%emt 00:00:57]} 60. Kd6 {[%clk 00:05:16]} {[%emt 00:01:05]} Bg7 {[%clk
00:01:52]} {[%emt 00:00:48]} 61. Qf3 {[%clk 00:04:10]} {[%emt 00:01:35]} Bf8
{[%clk 00:01:42]} {[%emt 00:00:40]} 62. Kd5 {[%clk 00:04:31]} {[%emt 00:00:09]}
Bg7 {[%clk 00:01:58]} {[%emt 00:00:15]} 63. Qh3 {[%clk 00:04:48]} {[%emt
00:00:12]} Bf6 {[%clk 00:01:51]} {[%emt 00:00:37]} 64. Kd6 {[%clk 00:04:40]}
{[%emt 00:00:38]} Bg7 {[%clk 00:02:11]} {[%emt 00:00:10]} 65. f5 {[%clk
00:04:06]} {[%emt 00:01:04]} Be5+ {[%clk 00:02:23]} {[%emt 00:00:18]} 66. Kd5
{[%clk 00:04:31]} {[%emt 00:00:05]} gxf5 {[%clk 00:02:46]} {[%emt 00:00:07]} 67.
Qxf5+ {[%clk 00:04:49]} {[%emt 00:00:11]} Bf6 {[%clk 00:03:08]} {[%emt
00:00:08]} 68. Kd6 {[%clk 00:04:43]} {[%emt 00:00:36]} Kg7 {[%clk 00:01:37]}
{[%emt 00:02:03]} 69. b5 {[%clk 00:04:31]} {[%emt 00:00:42]} axb5 {[%clk
00:01:59]} {[%emt 00:00:08]} 70. Qxb5 {[%clk 00:04:51]} {[%emt 00:00:10]} Kf7
{[%clk 00:02:14]} {[%emt 00:00:13]} 71. Qf5 {[%clk 00:03:41]} {[%emt 00:01:41]}
Kg7 {[%clk 00:02:37]} {[%emt 00:00:07]} 72. Qh5 {[%clk 00:03:43]} {[%emt
00:00:28]} Kf8 {[%clk 00:02:14]} {[%emt 00:00:53]} 73. Qg6 {[%clk 00:03:48]}
{[%emt 00:00:25]} Be5+ {[%clk 00:02:39]} {[%emt 00:00:05]} 74. Kc5 {[%clk
00:04:00]} {[%emt 00:00:18]} Bg7 {[%clk 00:02:53]} {[%emt 00:00:16]} 75. Kb6
{[%clk 00:03:28]} {[%emt 00:01:02]} Bd4+ {[%clk 00:03:10]} {[%emt 00:00:12]} 76.
Kb5 {[%clk 00:03:55]} {[%emt 00:00:04]} Bg7 {[%clk 00:03:33]} {[%emt 00:00:07]}
77. Qg4 {[%clk 00:04:00]} {[%emt 00:00:25]} Kf7 {[%clk 00:03:52]} {[%emt
00:00:11]} 78. Kb6 {[%clk 00:04:11]} {[%emt 00:00:20]} Bf6 {[%clk 00:04:05]}
{[%emt 00:00:16]} 79. Ka7 {[%clk 00:04:08]} {[%emt 00:00:34]} Bg7 {[%clk
00:04:15]} {[%emt 00:00:19]} 80. Qh5 {[%clk 00:04:22]} {[%emt 00:00:15]} Kf8
{[%clk 00:04:07]} {[%emt 00:00:39]} 81. Qf5+ {[%clk 00:04:37]} {[%emt
00:00:15]} Kg8 {[%clk 00:04:18]} {[%emt 00:00:19]} 82. Kb8 {[%clk 00:04:26]}
{[%emt 00:00:41]} Rf7 {[%clk 00:04:30]} {[%emt 00:00:18]} 83. Qe6 {[%clk
00:04:35]} {[%emt 00:00:20]} Bf6 {[%clk 00:04:39]} {[%emt 00:00:22]} 84. Kc8
{[%clk 00:04:27]} {[%emt 00:00:37]} Kg7 {[%clk 00:04:49]} {[%emt 00:00:21]} 85.
Qg4+ {[%clk 00:04:43]} {[%emt 00:00:14]} Kf8 {[%clk 00:04:59]} {[%emt
00:00:20]} 86. Qg6 {[%clk 00:04:35]} {[%emt 00:00:37]} Bg7 {[%clk 00:05:17]}
{[%emt 00:00:12]} 87. Qd6 {[%clk 00:04:37]} {[%emt 00:00:28]} Kg8 {[%clk
00:05:28]} {[%emt 00:00:20]} 88. Kd8 {[%clk 00:03:47]} {[%emt 00:01:20]} Rf8+
{[%clk 00:05:06]} {[%emt 00:00:52]} 89. Kd7 {[%clk 00:03:59]} {[%emt 00:00:18]}
Rf7+ {[%clk 00:05:17]} {[%emt 00:00:19]} 90. Kc8 {[%clk 00:04:24]} {[%emt
00:00:05]} Bf6 {[%clk 00:05:36]} {[%emt 00:00:11]} 91. Qe6 {[%clk 00:04:23]}
{[%emt 00:00:30]} Kf8 {[%clk 00:05:11]} {[%emt 00:00:55]} 92. Qg4 {[%clk
00:04:23]} {[%emt 00:00:30]} Bg7 {[%clk 00:05:18]} {[%emt 00:00:23]} 93. Qb4
{[%clk 00:04:18]} {[%emt 00:00:36]} Kg8 {[%clk 00:05:39]} {[%emt 00:00:10]} 94.
Kd8 {[%clk 00:03:56]} {[%emt 00:00:51]} Rf8+ {[%clk 00:05:51]} {[%emt
00:00:18]} 95. Kd7 {[%clk 00:04:00]} {[%emt 00:00:26]} Rf7+ {[%clk 00:06:06]}
{[%emt 00:00:14]} 96. Ke6 {[%clk 00:04:23]} {[%emt 00:00:07]} Rf6+ {[%clk
00:06:26]} {[%emt 00:00:10]} 97. Kd5 {[%clk 00:04:45]} {[%emt 00:00:08]} Rf5+
{[%clk 00:06:39]} {[%emt 00:00:18]} 98. Ke4 {[%clk 00:04:51]} {[%emt 00:00:24]}
Rf7 {[%clk 00:06:59]} {[%emt 00:00:09]} 99. Qd2 {[%clk 00:04:46]} {[%emt
00:00:36]} Re7+ {[%clk 00:06:32]} {[%emt 00:00:57]} 100. Kf5 {[%clk 00:04:31]}
{[%emt 00:00:44]} Re5+ {[%clk 00:06:46]} {[%emt 00:00:17]} 101. Kg4 {[%clk
00:04:51]} {[%emt 00:00:09]} Re4+ {[%clk 00:06:58]} {[%emt 00:00:18]} 102. Kf3
{[%clk 00:05:04]} {[%emt 00:00:17]} Re7 {[%clk 00:07:22]} {[%emt 00:00:06]} 103.
Qd5+ {[%clk 00:05:16]} {[%emt 00:00:19]} Kf8 {[%clk 00:07:24]} {[%emt
00:00:27]} 104. Kf4 {[%clk 00:05:00]} {[%emt 00:00:46]} Bf6 {[%clk 00:07:21]}
{[%emt 00:00:34]} 105. Kg4 {[%clk 00:04:57]} {[%emt 00:00:33]} Rg7+ {[%clk
00:07:25]} {[%emt 00:00:26]} 106. Kf4 {[%clk 00:04:37]} {[%emt 00:00:50]} Re7
{[%clk 00:07:43]} {[%emt 00:00:12]} 107. Qc5 {[%clk 00:04:51]} {[%emt
00:00:16]} Kf7 {[%clk 00:06:23]} {[%emt 00:01:50]} 108. Qb4 {[%clk 00:04:35]}
{[%emt 00:00:46]} Kg6 {[%clk 00:06:28]} {[%emt 00:00:25]} 109. Kg4 {[%clk
00:04:21]} {[%emt 00:00:44]} Kg7 {[%clk 00:06:35]} {[%emt 00:00:23]} 110. Qb5
{[%clk 00:03:58]} {[%emt 00:00:53]} Kg6 {[%clk 00:06:45]} {[%emt 00:00:20]} 111.
Qd5 {[%clk 00:04:16]} {[%emt 00:00:12]} Rf7 {[%clk 00:04:10]} {[%emt 00:03:04]}
112. Qf5+ {[%clk 00:03:06]} {[%emt 00:01:40]} Kh6 {[%clk 00:03:42]} {[%emt
00:00:58]} 113. Qe4 {[%clk 00:02:59]} {[%emt 00:00:37]} Re7 {[%clk 00:01:45]}
{[%emt 00:02:27]} 114. Qd5 {[%clk 00:02:24]} {[%emt 00:01:04]} Kg6 {[%clk
00:01:06]} {[%emt 00:01:09]} 115. Qg8+ {[%clk 00:02:38]} {[%emt 00:00:17]} Bg7
{[%clk 00:01:15]} {[%emt 00:00:22]} 116. Qc4 {[%clk 00:02:51]} {[%emt
00:00:16]} Bf6 {[%clk 00:01:31]} {[%emt 00:00:14]} 117. Qd3+ {[%clk 00:03:15]}
{[%emt 00:00:06]} Kg7 {[%clk 00:01:45]} {[%emt 00:00:16]} 118. Qd6 {[%clk
00:03:36]} {[%emt 00:00:09]} Kg6 {[%clk 00:01:56]} {[%emt 00:00:19]} 119. Qd5
{[%clk 00:04:00]} {[%emt 00:00:07]} Rf7 {[%clk 00:01:15]} {[%emt 00:01:11]} 120.
Qh5+ {[%clk 00:03:27]} {[%emt 00:01:02]} Kg7 {[%clk 00:01:37]} {[%emt
00:00:08]} 121. Kf5 {[%clk 00:03:27]} {[%emt 00:00:30]} 1/2-1/2

[Event "The Kvibergspelen 2023"]
[Site "Kviberg Park Hotel & Conference, Krutvagen 2, Gothenburg, Sweden"]
[Date "2023.09.16"]
[Round "6.12"]
[White "Thorn, Eric"]
[Black "Dingertz, Erik"]
[Result "1-0"]
[TimeControl "15 minutes + 5 seconds per move from move one (Round 1 - 4) / 90 minutes + 30 seconds per move from move one (Round 5 - 8)"]
[WhiteTitle "FM"]
[WhiteFideId "1710729"]
[BlackFideId "1741578"]
[WhiteElo "2390"]
[BlackElo "2140"]

1. c4 {[%clk 01:29:12]} {[%emt 00:01:47]} e5 {[%clk 01:30:51]} {[%emt
00:00:09]} 2. Nc3 {[%clk 01:29:35]} {[%emt 00:00:06]} Nf6 {[%clk 01:31:15]}
{[%emt 00:00:07]} 3. Nf3 {[%clk 01:29:58]} {[%emt 00:00:07]} Nc6 {[%clk
01:31:38]} {[%emt 00:00:07]} 4. e4 {[%clk 01:29:54]} {[%emt 00:00:34]} Bc5
{[%clk 01:29:22]} {[%emt 00:02:46]} 5. Nxe5 {[%clk 01:29:51]} {[%emt 00:00:33]}
Nxe5 {[%clk 01:29:49]} {[%emt 00:00:04]} 6. d4 {[%clk 01:30:13]} {[%emt
00:00:08]} Bb4 {[%clk 01:21:34]} {[%emt 00:08:46]} 7. dxe5 {[%clk 01:28:09]}
{[%emt 00:02:33]} Nxe4 {[%clk 01:21:58]} {[%emt 00:00:06]} 8. Qf3 {[%clk
01:28:29]} {[%emt 00:00:09]} Nxc3 {[%clk 01:20:47]} {[%emt 00:01:41]} 9. bxc3
{[%clk 01:28:50]} {[%emt 00:00:10]} Be7 {[%clk 01:20:00]} {[%emt 00:01:16]} 10.
Qg3 {[%clk 01:27:48]} {[%emt 00:01:32]} g6 {[%clk 01:13:43]} {[%emt 00:06:48]}
11. h4 {[%clk 01:24:13]} {[%emt 00:04:04]} d5 {[%clk 00:57:15]} {[%emt
00:16:59]} 12. Bb2 {[%clk 01:01:07]} {[%emt 00:23:36]} Be6 {[%clk 00:51:35]}
{[%emt 00:06:10]} 13. O-O-O {[%clk 00:54:50]} {[%emt 00:06:47]} c6 {[%clk
00:50:04]} {[%emt 00:02:01]} 14. cxd5 {[%clk 00:39:06]} {[%emt 00:16:14]} cxd5
{[%clk 00:50:08]} {[%emt 00:00:25]} 15. Bb5+ {[%clk 00:39:30]} {[%emt
00:00:06]} Kf8 {[%clk 00:50:32]} {[%emt 00:00:07]} 16. h5 {[%clk 00:38:46]}
{[%emt 00:01:14]} g5 {[%clk 00:39:58]} {[%emt 00:11:04]} 17. Rd4 {[%clk
00:25:59]} {[%emt 00:13:17]} h6 {[%clk 00:29:35]} {[%emt 00:10:53]} 18. Rhd1
{[%clk 00:24:26]} {[%emt 00:02:02]} Rc8 {[%clk 00:28:34]} {[%emt 00:01:31]} 19.
Bc4 {[%clk 00:18:45]} {[%emt 00:06:11]} Rxc4 {[%clk 00:26:15]} {[%emt
00:02:50]} 20. Rxc4 {[%clk 00:17:29]} {[%emt 00:01:45]} Qa5 {[%clk 00:26:43]}
{[%emt 00:00:03]} 21. Rcd4 {[%clk 00:14:37]} {[%emt 00:03:22]} Qxa2 {[%clk
00:26:54]} {[%emt 00:00:19]} 22. Qd3 {[%clk 00:10:42]} {[%emt 00:04:25]} Kg7
{[%clk 00:25:29]} {[%emt 00:01:55]} 23. Qb1 {[%clk 00:08:20]} {[%emt 00:02:51]}
Qa6 {[%clk 00:20:04]} {[%emt 00:05:55]} 24. Qa1 {[%clk 00:07:20]} {[%emt
00:01:29]} Qe2 {[%clk 00:20:25]} {[%emt 00:00:10]} 25. R4d2 {[%clk 00:06:44]}
{[%emt 00:01:07]} Qc4 {[%clk 00:19:16]} {[%emt 00:01:39]} 26. Rd4 {[%clk
00:05:59]} {[%emt 00:01:13]} Qe2 {[%clk 00:17:02]} {[%emt 00:02:46]} 27. R4d2
{[%clk 00:06:27]} {[%emt 00:00:02]} Qc4 {[%clk 00:17:19]} {[%emt 00:00:12]} 28.
Ba3 {[%clk 00:04:33]} {[%emt 00:02:24]} Bxa3+ {[%clk 00:16:30]} {[%emt
00:01:19]} 29. Qxa3 {[%clk 00:05:02]} {[%emt 00:00:03]} Rc8 {[%clk 00:15:56]}
{[%emt 00:01:03]} 30. Rd3 {[%clk 00:02:03]} {[%emt 00:03:27]} Rc6 {[%clk
00:12:46]} {[%emt 00:03:41]} 31. Rd4 {[%clk 00:00:42]} {[%emt 00:01:52]} Qe2
{[%clk 00:11:34]} {[%emt 00:01:41]} 32. Qb2 {[%clk 00:00:42]} {[%emt 00:00:30]}
Qxe5 {[%clk 00:11:40]} {[%emt 00:00:24]} 33. Qd2 {[%clk 00:00:34]} {[%emt
00:00:37]} Ra6 {[%clk 00:10:50]} {[%emt 00:01:21]} 34. Rb4 {[%clk 00:00:36]}
{[%emt 00:00:29]} Ra1+ {[%clk 00:07:50]} {[%emt 00:03:30]} 35. Kb2 {[%clk
00:00:40]} {[%emt 00:00:25]} Rxd1 {[%clk 00:05:21]} {[%emt 00:02:59]} 36. Qxd1
{[%clk 00:01:08]} {[%emt 00:00:03]} b6 {[%clk 00:05:29]} {[%emt 00:00:21]} 37.
g3 {[%clk 00:00:39]} {[%emt 00:00:58]} g4 {[%clk 00:05:02]} {[%emt 00:00:58]}
38. Qd4 {[%clk 00:00:33]} {[%emt 00:00:37]} Kf6 {[%clk 00:04:28]} {[%emt
00:01:04]} 39. Ra4 {[%clk 00:00:44]} {[%emt 00:00:19]} Qxd4 {[%clk 00:04:47]}
{[%emt 00:00:11]} 40. cxd4 {[%clk 00:01:06]} {[%emt 00:00:07]} a5 {[%clk
00:05:09]} {[%emt 00:00:08]} 41. Ra3 {[%clk 00:01:18]} {[%emt 00:00:18]} Kf5
{[%clk 00:02:22]} {[%emt 00:03:17]} 42. Re3 {[%clk 00:00:54]} {[%emt 00:00:54]}
f6 {[%clk 00:02:42]} {[%emt 00:00:11]} 43. Rb3 {[%clk 00:01:14]} {[%emt
00:00:09]} Bf7 {[%clk 00:01:12]} {[%emt 00:02:01]} 44. Rxb6 {[%clk 00:01:33]}
{[%emt 00:00:10]} Bxh5 {[%clk 00:01:37]} {[%emt 00:00:05]} 45. Kc3 {[%clk
00:01:13]} {[%emt 00:00:50]} Be8 {[%clk 00:01:13]} {[%emt 00:00:55]} 46. Rd6
{[%clk 00:01:22]} {[%emt 00:00:21]} Bf7 {[%clk 00:01:36]} {[%emt 00:00:06]} 47.
Kd3 {[%clk 00:01:21]} {[%emt 00:00:30]} a4 {[%clk 00:01:50]} {[%emt 00:00:18]}
48. Ke3 {[%clk 00:01:34]} {[%emt 00:00:16]} h5 {[%clk 00:01:55]} {[%emt
00:00:25]} 49. Rd8 {[%clk 00:01:38]} {[%emt 00:00:25]} Kg5 {[%clk 00:02:04]}
{[%emt 00:00:22]} 50. Ra8 {[%clk 00:01:51]} {[%emt 00:00:17]} Bg6 {[%clk
00:02:17]} {[%emt 00:00:18]} 51. Rxa4 {[%clk 00:01:36]} {[%emt 00:00:43]} Be4
{[%clk 00:02:33]} {[%emt 00:00:15]} 52. Ra8 {[%clk 00:01:35]} {[%emt 00:00:30]}
Bf3 {[%clk 00:01:15]} {[%emt 00:01:49]} 53. Rg8+ {[%clk 00:01:06]} {[%emt
00:01:00]} Kf5 {[%clk 00:01:38]} {[%emt 00:00:07]} 54. Rh8 {[%clk 00:01:05]}
{[%emt 00:00:30]} Kg5 {[%clk 00:01:58]} {[%emt 00:00:11]} 55. Rg8+ {[%clk
00:00:49]} {[%emt 00:00:46]} Kf5 {[%clk 00:02:24]} {[%emt 00:00:03]} 56. Rh8
{[%clk 00:01:16]} {[%emt 00:00:03]} Kg5 {[%clk 00:02:49]} {[%emt 00:00:05]} 57.
Kd2 {[%clk 00:01:41]} {[%emt 00:00:05]} f5 {[%clk 00:02:10]} {[%emt 00:01:09]}
58. Ke3 {[%clk 00:01:55]} {[%emt 00:00:17]} Be4 {[%clk 00:02:31]} {[%emt
00:00:08]} 59. Rg8+ {[%clk 00:02:13]} {[%emt 00:00:12]} Kf6 {[%clk 00:02:37]}
{[%emt 00:00:24]} 60. Kf4 {[%clk 00:02:38]} {[%emt 00:00:05]} Bd3 {[%clk
00:03:03]} {[%emt 00:00:05]} 61. Rg5 {[%clk 00:02:07]} {[%emt 00:00:59]} 1-0